bitfinex/quotes_ETHUSD_20251122
["timestamp","ask_amount","ask_price","bid_price","bid_amount"]
[1763789633176,0.405504,2734.2,2733.8,2.77317596]
[1763789633413,0.405504,2734.2,2733.9,0.90699264]
[1763789634009,0.405504,2734.1,2734.0,0.001]
[1763789634314,0.405504,2734.4,2734.0,0.001]
[1763789634671,0.405504,2734.5,2734.0,0.001]
[1763789634874,0.405504,2734.5,2734.1,0.187]
[1763789635073,0.405504,2734.8,2734.1,0.6737]
[1763789635293,0.405504,2734.8,2734.1,2.96017596]
[1763789635495,0.405504,2734.7,2734.1,2.96017596]
[1763789635816,0.04569381,2735.6,2734.1,2.96017596]
[1763789635817,0.4997,2735.1,2734.2,3.38387596]
[1763789636183,0.405504,2735.0,2734.2,3.38387596]
[1763789636582,0.405504,2734.9,2734.2,3.38387596]
[1763789636885,0.405504,2734.9,2734.2,7.04124363]
[1763789637484,0.405504,2734.9,2734.2,3.38387596]
[1763789637684,0.405504,2734.9,2734.2,4.14549006]
[1763789638924,0.405504,2734.9,2734.2,7.80285354]
[1763789639446,0.405504,2734.9,2734.2,4.14549006]
[1763789639584,1.55696147,2736.2,2734.8,0.4858]
[1763789639585,0.405504,2735.4,2734.8,0.4858]
[1763789639789,0.405504,2735.4,2734.2,13.14664756]
[1763789639790,0.405504,2735.2,2734.6,0.124]
[1763789640008,0.405504,2735.2,2734.6,0.55308686]
[1763789640818,0.405504,2734.6,2734.5,1.03099264]
[1763789640993,0.455304,2734.6,2734.5,2.89717596]
[1763789641202,0.455304,2734.6,2734.5,2.77317596]
[1763789641836,0.405504,2734.8,2734.5,0.4858]
[1763789641996,0.405504,2735.2,2734.5,0.9725]
[1763789642308,0.405504,2735.2,2734.7,0.4858]
[1763789642509,0.405504,2735.4,2734.7,0.4858]
[1763789642833,0.4997,2735.5,2734.8,0.124]
[1763789643043,0.4997,2735.8,2734.8,0.124]
[1763789643239,0.4997,2735.8,2734.9,0.96201348]
[1763789643450,0.4997,2735.8,2734.9,0.4867]
[1763789643598,0.57368406,2736.2,2735.6,0.4858]
[1763789643799,1.07338406,2736.2,2735.4,0.124]
[1763789644058,0.405504,2736.1,2735.4,0.124]
[1763789644336,1.07338406,2736.2,2735.4,0.124]
[1763789644714,0.4997,2736.5,2735.4,0.6107]
[1763789645036,0.405504,2736.4,2735.5,1.39369264]
[1763789645204,0.405504,2736.4,2735.6,0.51734627]
[1763789645404,0.4997,2736.5,2735.6,0.51734627]
[1763789645639,0.2319,2735.7,2734.2,8.60364304]
[1763789645932,0.2319,2735.7,2734.1,0.187]
[1763789645933,0.407304,2735.6,2734.4,0.6152]
[1763789646118,0.95099781,2735.6,2734.4,0.6152]
[1763789646332,0.405504,2735.4,2734.4,0.6152]
[1763789646629,0.405504,2735.2,2734.4,1.13315425]
[1763789646932,0.405504,2735.0,2734.4,0.6152]
[1763789647132,0.405504,2735.2,2734.4,0.6152]
[1763789647603,0.405504,2735.0,2734.4,0.4912]
[1763789647846,0.405504,2735.0,2734.5,0.124]
[1763789648160,0.405504,2735.1,2734.5,0.124]
[1763789650927,0.1821,2735.7,2735.0,0.4694]
[1763789651127,0.04569381,2735.6,2735.0,0.124]
[1763789651426,0.002,2735.3,2735.0,0.124]
[1763789651854,0.002,2735.3,2734.6,0.4912]
[1763789652055,0.002,2735.3,2734.8,0.124]
[1763789652056,0.405504,2734.9,2734.8,0.124]
[1763789652231,0.405504,2735.0,2734.8,0.124]
[1763789652431,0.405504,2735.0,2734.8,1.0846]
[1763789652631,0.002,2735.3,2734.9,0.4694]
[1763789653359,0.002,2735.3,2734.9,0.9606]
[1763789653663,0.002,2735.3,2734.8,0.124]
[1763789653864,0.002,2735.3,2734.8,0.6152]
[1763789654270,0.002,2735.3,2735.2,0.6619]
[1763789654468,0.002,2735.3,2735.2,0.7859]
[1763789654965,0.002,2735.3,2735.2,1.2771]
[1763789655980,0.002,2735.3,2735.2,2.18409264]
[1763789656176,0.002,2735.3,2735.2,6.42415029]
[1763789656967,0.002,2735.3,2735.2,6.52415029]
[1763789658281,0.002,2735.3,2735.2,2.64411052]
[1763789658580,0.002,2735.3,2735.2,2.18409264]
[1763789659586,0.405504,2735.2,2734.5,0.001]
[1763789659742,0.405504,2735.2,2734.6,0.6152]
[1763789659947,0.002,2735.3,2734.6,1.52219264]
[1763789660274,0.002,2735.3,2734.7,0.4912]
[1763789661342,0.002,2735.3,2735.2,0.6619]
[1763789661546,0.002,2735.3,2735.2,0.7859]
[1763789662480,0.002,2735.3,2735.2,2.18409264]
[1763789662673,0.002,2735.3,2735.2,10.52207283]
[1763789662893,0.002,2735.3,2735.2,12.21721399]
[1763789663668,0.002,2735.3,2735.2,8.56117422]
[1763789663992,0.002,2735.3,2735.2,1.03099264]
[1763789664296,0.002,2735.3,2735.2,1.50039264]
[1763789664991,0.002,2735.3,2735.2,1.99159264]
[1763789666180,0.002,2735.3,2735.2,5.64763241]
[1763789666393,0.002,2735.3,2735.2,10.42957283]
[1763789666635,0.002,2735.3,2735.2,12.13471393]
[1763789667755,0.002,2735.6,2735.5,0.90699264]
[1763789667966,0.002,2735.6,2735.5,4.6387686]
[1763789668380,0.002,2735.6,2735.5,1.96759264]
[1763789670213,0.002,2735.6,2735.5,5.52323146]
[1763789670501,0.002,2735.6,2735.5,6.44113185]
[1763789670810,0.002,2735.6,2735.5,6.56513185]
[1763789671415,0.002,2735.6,2735.5,1.38730039]
[1763789671702,0.002,2735.6,2735.5,2.41829303]
[1763789671915,0.002,2735.6,2735.5,6.56513185]
[1763789672810,0.002,2735.6,2735.5,2.41829303]
[1763789673019,0.459004,2735.6,2735.5,0.90699264]
[1763789673219,0.407504,2735.6,2735.5,1.03099264]
[1763789673575,0.459004,2735.6,2735.5,0.90699264]
[1763789673775,0.407504,2735.6,2735.5,1.03099264]
[1763789674195,0.952504,2735.6,2735.5,0.124]
[1763789675194,0.463404,2735.6,2735.5,0.124]
[1763789675615,0.407504,2735.6,2735.5,0.6045]
[1763789675926,0.407504,2735.6,2735.5,6.0936515]
[1763789676130,0.002,2735.6,2735.5,6.0936515]
[1763789679024,0.002,2735.6,2735.5,8.86482746]
[1763789682331,0.002,2735.6,2735.5,2.43801268]
[1763789682499,0.474804,2735.6,2735.5,1.37851268]
[1763789682684,0.474804,2735.6,2735.5,1.03099264]
[1763789682883,0.407504,2735.6,2735.5,1.03099264]
[1763789683087,0.407504,2735.6,2735.5,1.49169264]
[1763789683410,0.407504,2735.6,2735.5,1.03099264]
[1763789683616,0.474804,2735.6,2735.5,1.03099264]
[1763789685291,0.407504,2735.6,2735.5,1.03099264]
[1763789685502,0.002,2735.6,2735.5,6.10012091]
[1763789685697,0.002,2735.6,2735.5,2.44448209]
[1763789686236,0.002,2735.6,2735.5,6.10012091]
[1763789686438,0.002,2735.6,2735.5,5.61602091]
[1763789686654,0.002,2735.6,2735.5,6.10012091]
[1763789686826,0.002,2735.9,2735.5,9.85575973]
[1763789687138,0.002,2735.9,2735.8,0.4607]
[1763789687349,0.002,2735.9,2735.8,0.5847]
[1763789687650,0.002,2735.9,2735.8,1.0688]
[1763789688260,0.002,2735.9,2735.8,5.73103059]
[1763789689118,0.002,2735.9,2735.8,8.50220655]
[1763789689347,0.002,2735.9,2735.8,10.32127241]
[1763789691885,0.002,2735.9,2735.8,10.22127241]
[1763789692085,0.002,2735.9,2735.8,10.32127241]
[1763789693084,0.002,2735.9,2735.8,6.84199645]
[1763789693255,0.002,2735.9,2735.8,7.45009645]
[1763789695278,0.002,2735.9,2735.8,6.96599645]
[1763789695652,0.002,2735.9,2735.8,7.55009645]
[1763789697123,0.405504,2736.8,2735.9,0.1]
[1763789697286,0.405504,2736.8,2736.1,4.78194042]
[1763789697493,0.405504,2736.8,2736.2,0.124]
[1763789697789,0.887504,2736.8,2736.2,0.124]
[1763789698198,0.887504,2736.8,2736.4,0.90699264]
[1763789698405,0.887504,2736.8,2736.5,0.49181686]
[1763789699286,0.405504,2736.8,2736.5,0.49181686]
[1763789700013,0.1624,2736.9,2736.5,0.49181686]
[1763789700185,0.1624,2736.9,2736.6,2.77117596]
[1763789700380,0.1624,2736.9,2736.6,6.42530419]
[1763789700580,0.405504,2736.8,2736.5,3.13899282]
[1763789700777,0.887504,2736.8,2736.7,0.124]
[1763789701027,0.002,2737.6,2736.7,0.124]
[1763789701028,0.482,2737.1,2736.7,0.124]
[1763789701329,0.405504,2736.6,2735.4,0.4841]
[1763789701475,0.405504,2736.7,2735.3,3.65690611]
[1763789701476,0.410304,2736.7,2735.3,3.65690611]
[1763789701677,0.405504,2736.5,2735.3,0.001]
[1763789701914,0.645704,2735.4,2735.3,0.001]
[1763789703118,0.1729,2736.0,2735.3,1.85279264]
[1763789703301,0.405504,2735.9,2735.5,0.4607]
[1763789703491,0.405504,2735.9,2735.6,0.124]
[1763789704016,0.405504,2736.3,2735.8,0.4607]
[1763789704216,0.405504,2736.3,2735.9,0.18517926]
[1763789704453,0.1729,2736.4,2736.1,0.90699264]
[1763789704816,0.1729,2736.7,2736.1,0.90699264]
[1763789705010,0.405504,2736.6,2736.1,0.90699264]
[1763789705257,0.482,2737.2,2736.2,0.4841]
[1763789705620,0.405504,2737.1,2736.2,0.5841]
[1763789705830,0.405504,2737.1,2736.3,0.124]
[1763789706032,0.405504,2736.9,2736.1,1.09009264]
[1763789706233,0.405504,2736.9,2736.2,1.06669195]
[1763789706418,0.405504,2736.9,2736.4,0.90699264]
[1763789706860,0.405504,2736.9,2736.4,1.39459264]
[1763789707258,0.405504,2736.9,2736.4,0.90699264]
[1763789707418,0.405504,2736.8,2736.4,0.90699264]
[1763789707614,0.405504,2736.8,2736.5,0.45615627]
[1763789707815,0.405504,2737.1,2736.6,0.124]
[1763789708354,0.467904,2736.7,2736.6,0.124]
[1763789708554,0.407504,2736.7,2736.6,1.03099264]
[1763789709646,0.407504,2736.7,2736.6,1.52559264]
[1763789709846,0.407504,2736.7,2736.6,2.08919654]
[1763789710361,0.952604,2736.7,2736.6,0.124]
[1763789711366,0.952604,2736.7,2736.5,0.45615627]
[1763789711659,0.407504,2736.7,2736.6,0.124]
[1763789711867,0.407504,2736.7,2736.6,0.6186]
[1763789712070,0.407504,2736.7,2736.6,2.41269489]
[1763789712275,0.952604,2736.7,2736.6,0.124]
[1763789712933,0.952604,2736.7,2735.8,2.95517596]
[1763789712934,0.405504,2736.6,2735.8,2.95517596]
[1763789713162,0.405504,2736.6,2735.9,0.124]
[1763789713163,0.0048,2736.5,2735.9,0.124]
[1763789713562,0.405504,2736.3,2735.9,0.124]
[1763789713962,0.002,2736.7,2736.2,0.4946]
[1763789714167,0.405504,2736.6,2736.3,0.124]
[1763789714675,0.002,2736.7,2736.5,0.4946]
[1763789714979,0.002,2736.7,2736.6,0.4946]
[1763789715183,0.002,2736.7,2736.6,7.34261117]
[1763789715340,0.002,2737.0,2736.7,0.90699264]
[1763789715545,0.002,2737.0,2736.9,0.5946]
[1763789715740,0.002,2737.0,2736.9,0.4946]
[1763789715939,0.0624,2737.0,2736.9,0.124]
[1763789716279,0.405504,2736.9,2735.9,1.00699264]
[1763789716476,0.405504,2736.9,2736.0,0.71948083]
[1763789716477,0.573504,2736.9,2736.0,0.71948083]
[1763789716783,1.062504,2736.9,2736.1,0.124]
[1763789717144,0.405504,2736.7,2736.1,1.03099264]
[1763789717444,0.405504,2736.7,2736.1,0.124]
[1763789717645,0.405504,2736.5,2736.1,0.124]
[1763789717854,0.405504,2736.5,2735.8,0.90699264]
[1763789718176,0.405504,2736.5,2735.9,0.83177358]
[1763789718350,0.405504,2736.5,2736.0,0.124]
[1763789719244,0.405504,2736.4,2736.0,4.68591311]
[1763789722777,0.657,2736.9,2735.9,0.83177358]
[1763789722980,0.657,2736.9,2736.3,0.4946]
[1763789722981,0.168,2736.9,2736.3,0.4946]
[1763789723336,0.405504,2736.8,2736.5,0.90699264]
[1763789723583,0.405504,2736.8,2736.6,0.124]
[1763789724248,0.002,2737.0,2736.7,0.9822]
[1763789724471,0.002,2737.0,2736.7,0.69591926]
[1763789724639,0.002,2737.0,2736.7,1.18351926]
[1763789725180,0.869504,2736.8,2736.7,0.20131926]
[1763789725481,0.869504,2736.8,2736.7,0.124]
[1763789726137,0.405504,2736.8,2736.7,0.124]
[1763789726974,0.405504,2736.8,2736.6,0.90699264]
[1763789727300,0.405504,2736.7,2736.6,0.90699264]
[1763789727502,0.405504,2736.7,2736.6,1.03099264]
[1763789727814,0.405504,2736.7,2736.6,0.59252577]
[1763789728808,0.951704,2736.7,2736.6,0.124]
[1763789729307,0.405504,2736.6,2736.2,0.90699264]
[1763789729478,0.405504,2736.5,2736.3,0.124]
[1763789729878,0.869504,2736.4,2736.3,0.124]
[1763789730961,0.405504,2736.3,2736.2,0.90699264]
[1763789731164,0.405504,2736.3,2736.2,1.03099264]
[1763789731165,0.406404,2736.3,2736.2,1.03099264]
[1763789731478,0.0009,2736.3,2736.2,1.03099264]
[1763789731869,0.405504,2736.8,2736.2,6.30229851]
[1763789732290,0.002,2736.9,2736.4,0.90699264]
[1763789732490,0.002,2736.9,2736.7,0.4946]
[1763789732696,0.002,2736.9,2736.8,0.124]
[1763789733003,0.002,2736.9,2736.8,0.6186]
[1763789733207,0.002,2736.9,2736.8,3.38977596]
[1763789733382,0.002,2736.9,2736.8,5.26280546]
[1763789733578,0.002,2736.9,2736.8,6.14553186]
[1763789733768,0.002,2736.9,2736.8,8.91670782]
[1763789735432,0.002,2736.9,2736.8,5.26280546]
[1763789735731,0.002,2736.9,2736.8,8.91670782]
[1763789736234,0.002,2736.9,2736.8,8.42910782]
[1763789736428,0.002,2736.9,2736.8,8.88280782]
[1763789736735,0.4595,2737.5,2736.9,0.90699264]
[1763789736736,0.002,2737.5,2736.9,0.90699264]
[1763789736893,0.002,2737.5,2736.9,11.1842233]
[1763789737100,0.002,2737.5,2737.4,0.1]
[1763789737295,0.002,2737.5,2737.4,4.4593686]
[1763789737494,0.002,2737.5,2737.4,4.2751686]
[1763789737838,0.002,2737.5,2737.4,4.7455686]
[1763789737993,0.002,2737.5,2737.4,8.87322694]
[1763789738635,0.002,2737.5,2737.4,4.62572546]
[1763789738805,0.002,2737.5,2737.4,8.40282694]
[1763789739143,0.002,2737.5,2737.4,8.97322694]
[1763789742475,0.002,2737.5,2737.4,8.87322694]
[1763789744965,0.002,2737.5,2737.4,8.97322694]
[1763789745753,0.002,2737.5,2737.4,6.20205098]
[1763789746854,0.002,2737.5,2737.4,5.15865098]
[1763789747055,0.002,2737.5,2737.4,1.3815495]
[1763789747255,0.907304,2737.5,2737.4,1.03099264]
[1763789747681,0.907304,2737.5,2736.8,0.001]
[1763789747682,0.405504,2737.4,2736.8,0.001]
[1763789747994,0.405504,2737.4,2736.9,0.124]
[1763789748196,0.405504,2737.3,2736.9,0.124]
[1763789748398,0.405504,2737.3,2737.0,0.74327769]
[1763789748572,0.405504,2737.3,2737.2,0.473]
[1763789748777,0.002,2737.5,2737.2,0.1]
[1763789749100,0.405504,2737.3,2737.2,0.90699264]
[1763789749430,0.405504,2737.3,2737.2,1.03099264]
[1763789749787,0.405504,2737.3,2737.2,2.3378031]
[1763789750397,0.405504,2737.3,2737.2,2.8082031]
[1763789750581,0.002,2737.5,2737.2,2.8082031]
[1763789750995,0.002,2737.5,2737.4,5.03309412]
[1763789751208,0.002,2737.5,2737.4,7.90427008]
[1763789751367,0.002,2737.5,2737.4,9.6732412]
[1763789753534,0.002,2737.5,2737.4,5.57373972]
[1763789753705,0.002,2737.5,2737.4,4.2751686]
[1763789754027,0.907304,2737.5,2737.4,3.6781686]
[1763789754230,0.907304,2737.5,2737.4,7.33127008]
[1763789754532,0.907304,2737.5,2737.4,7.45527008]
[1763789755427,0.407504,2737.5,2737.4,7.92827008]
[1763789755599,0.407504,2737.5,2737.4,9.74020143]
[1763789755802,0.407504,2737.5,2737.4,9.64020143]
[1763789756009,0.407504,2737.5,2737.4,9.16980143]
[1763789757141,0.002,2737.5,2737.4,6.86902547]
[1763789757290,0.002,2737.5,2737.4,6.96902547]
[1763789757491,0.002,2737.5,2737.4,9.74020143]
[1763789758638,0.002,2737.5,2737.4,9.26980143]
[1763789758930,0.002,2737.5,2737.4,9.16980143]
[1763789760951,0.002,2737.5,2737.4,9.64020143]
[1763789761125,0.002,2737.5,2737.4,9.74020143]
[1763789761327,0.002,2737.6,2737.5,0.1]
[1763789761560,0.002,2737.8,2737.7,4.91399264]
[1763789761727,0.002,2737.9,2737.8,0.1]
[1763789761923,0.002,2737.9,2737.8,1.95039264]
[1763789762124,0.002,2737.9,2737.8,5.60296039]
[1763789762324,0.002,2737.9,2737.8,5.62696039]
[1763789762552,0.002,2737.9,2737.8,6.66492568]
[1763789763368,0.002,2737.9,2737.8,1.84495793]
[1763789763575,0.405504,2737.8,2737.6,7.30566918]
[1763789763884,0.002,2737.9,2737.7,1.03099264]
[1763789764031,0.002,2737.9,2737.7,5.15657234]
[1763789764506,0.002,2737.9,2737.8,0.9434]
[1763789764630,0.002,2737.9,2737.8,1.97136735]
[1763789766730,0.002,2737.9,2737.8,15.7701037]
[1763789767467,0.002,2737.9,2737.8,15.2997037]
[1763789767671,0.002,2737.9,2737.8,15.4237037]
[1763789767971,0.002,2737.9,2737.8,6.64942774]
[1763789768830,0.002,2737.9,2737.8,11.31726733]
[1763789769869,0.002,2737.9,2737.8,11.19326733]
[1763789770059,0.002,2737.9,2737.8,11.31726733]
[1763789770375,0.002,2737.9,2737.8,10.75236733]
[1763789770578,0.002,2737.9,2737.8,10.62836733]
[1763789770867,0.002,2737.9,2737.8,6.08452774]
[1763789771675,0.002,2738.0,2737.9,0.90699264]
[1763789771870,0.002,2738.0,2737.9,3.93622338]
[1763789772788,0.002,2738.0,2737.9,10.35783368]
[1763789775485,0.002,2738.0,2737.9,14.21483368]
[1763789777273,0.002,2738.0,2737.9,14.93976113]
[1763789779158,0.002,2738.0,2737.9,11.08276113]
[1763789779363,0.002,2738.0,2737.9,9.27493368]
[1763789779608,0.002,2738.0,2737.9,9.98303368]
[1763789780891,0.002,2738.0,2737.9,10.48183368]
[1763789781722,0.002,2738.2,2738.0,0.9829]
[1763789782031,0.002,2738.2,2738.1,7.74865903]
[1763789782326,0.002,2738.2,2738.1,12.15445903]
[1763789782509,0.002,2738.2,2738.1,12.10445903]
[1763789782826,0.002,2738.2,2738.1,11.89962659]
[1763789783038,0.002,2738.2,2738.1,11.21452659]
[1763789783604,0.002,2738.2,2738.1,11.71332659]
[1763789784132,0.002,2738.2,2738.1,11.21452659]
[1763789784318,0.5474,2738.2,2738.1,6.086587]
[1763789784492,0.0918,2738.2,2738.1,6.086587]
[1763789785924,0.0918,2738.2,2738.1,6.186587]
[1763789786534,0.002,2738.2,2738.1,6.186587]
[1763789786896,0.002,2738.2,2738.1,8.95576296]
[1763789787308,0.0955,2738.2,2738.1,8.95576296]
[1763789788720,0.002,2738.2,2738.1,8.95576296]
[1763789789320,0.0955,2738.2,2738.1,8.95576296]
[1763789790146,0.5474,2738.2,2738.1,8.85576296]
[1763789790648,0.0955,2738.2,2738.1,8.85576296]
[1763789791149,0.0955,2738.2,2738.1,5.0795954]
[1763789791445,0.405504,2738.1,2737.9,6.42150909]
[1763789791647,0.405504,2738.1,2737.8,0.001]
[1763789791846,0.4539,2738.2,2737.8,0.125]
[1763789791847,0.684304,2737.9,2737.8,0.125]
[1763789792241,1.132704,2737.9,2737.8,0.125]
[1763789793036,1.132704,2737.9,2737.8,4.68456039]
[1763789793239,0.684304,2737.9,2737.8,5.51828632]
[1763789793554,0.502604,2737.9,2737.8,5.51828632]
[1763789793724,0.502604,2737.9,2737.8,1.86571857]
[1763789794053,0.502604,2737.9,2737.8,5.51828632]
[1763789794349,0.951004,2737.9,2737.8,5.51828632]
[1763789794567,0.951004,2737.9,2737.8,0.125]
[1763789796161,0.951004,2737.9,2737.8,0.001]
[1763789796673,0.951004,2737.9,2737.8,0.125]
[1763789796971,0.951004,2737.9,2737.8,3.8011686]
[1763789798046,0.502604,2737.9,2737.8,3.8011686]
[1763789798459,0.502604,2737.9,2737.8,7.45373635]
[1763789799163,0.1837,2738.1,2737.9,0.90699264]
[1763789799347,0.405504,2738.0,2737.9,1.00699264]
[1763789799764,0.405504,2738.0,2737.9,4.65942698]
[1763789799985,0.950604,2738.0,2737.8,2.89417596]
[1763789800142,0.0048,2737.9,2737.8,3.8011686]
[1763789800342,0.410304,2737.9,2737.8,3.8011686]
[1763789800938,0.896504,2737.9,2737.8,3.8011686]
[1763789804510,0.410304,2737.9,2737.8,3.8011686]
[1763789804911,0.410304,2737.9,2737.8,7.45373635]
[1763789805114,0.410304,2737.9,2737.8,3.8011686]
[1763789805420,0.405504,2737.9,2737.8,4.2810686]
[1763789805724,0.002,2738.2,2738.0,0.4799]
[1763789805943,0.002,2738.2,2738.1,0.224]
[1763789806075,0.002,2738.2,2738.1,0.124]
[1763789806276,0.0651,2738.2,2738.1,0.124]
[1763789806613,0.0651,2738.2,2738.1,4.6831602]
[1763789806791,0.0651,2738.2,2738.1,5.51670546]
[1763789806988,0.002,2738.2,2738.1,6.55440546]
[1763789807381,0.002,2738.2,2738.1,10.41140546]
[1763789807581,0.002,2738.3,2738.2,1.00699264]
[1763789807811,0.002,2738.3,2738.2,6.61253223]
[1763789808012,0.002,2738.3,2738.2,12.71290273]
[1763789808182,0.002,2738.6,2738.5,0.90699264]
[1763789808383,0.002,2738.6,2738.5,5.46789264]
[1763789808582,0.002,2738.6,2738.5,9.57732674]
[1763789809294,0.002,2738.7,2738.6,0.15]
[1763789809627,0.002,2738.7,2738.6,12.21260451]
[1763789810325,0.002,2738.7,2738.6,12.16260451]
[1763789810521,0.002,2738.7,2738.6,15.86410527]
[1763789811512,0.002,2738.7,2738.6,12.00710527]
[1763789812582,0.405504,2739.9,2738.7,0.90699264]
[1763789812787,0.405504,2739.9,2739.2,0.90699264]
[1763789812987,0.405504,2739.9,2739.6,0.1]
[1763789813292,0.405504,2739.9,2739.7,0.124]
[1763789813516,0.0631,2739.8,2739.7,0.124]
[1763789814351,0.405504,2739.7,2739.3,0.4862]
[1763789814550,0.0048,2739.4,2739.3,0.60610322]
[1763789814723,0.0048,2739.4,2739.3,5.28766352]
[1763789815123,0.0048,2739.4,2739.3,1.51309586]
[1763789815327,0.491,2739.4,2739.3,1.03099264]
[1763789815639,0.896504,2739.4,2739.3,1.03099264]
[1763789815813,0.896504,2739.4,2739.3,0.90699264]
[1763789816462,0.896504,2739.4,2739.3,1.02999264]
[1763789816633,0.410304,2739.4,2739.3,1.02999264]
[1763789817617,0.896504,2739.4,2739.3,1.02999264]
[1763789819462,0.410304,2739.4,2739.3,1.02999264]
[1763789820345,0.002,2739.8,2739.5,0.1]
[1763789820554,0.002,2739.8,2739.7,6.15473223]
[1763789820819,0.002,2739.8,2739.7,9.9277669]
[1763789821094,0.002,2739.8,2739.7,10.3855669]
[1763789821268,0.002,2740.1,2740.0,1.00699264]
[1763789821439,0.002,2740.4,2740.3,0.1]
[1763789821645,0.002,2740.4,2740.3,0.123]
[1763789821848,0.0651,2740.4,2740.3,0.123]
[1763789822283,0.002,2740.4,2740.3,0.6029]
[1763789822445,0.002,2740.4,2740.3,1.1607]
[1763789822645,0.002,2740.4,2740.3,2.06769264]
[1763789822874,0.002,2740.4,2740.3,5.98130134]
[1763789823080,0.002,2740.4,2740.3,5.40140134]
[1763789823597,0.0651,2740.4,2740.3,5.40140134]
[1763789824588,0.002,2740.4,2740.3,5.40140134]
[1763789825162,0.002,2740.4,2740.3,6.43910134]
[1763789825394,0.002,2740.4,2740.3,6.46810134]
[1763789825560,0.002,2740.4,2740.3,0.84517322]
[1763789825760,0.002,2740.4,2740.3,5.98310134]
[1763789826161,0.002,2740.4,2740.3,6.46990134]
[1763789828504,0.002,2740.4,2740.3,5.98310134]
[1763789828910,0.002,2740.4,2740.3,1.72916586]
[1763789829109,0.497,2740.4,2740.3,4.67922812]
[1763789829496,0.497,2740.4,2739.6,0.7769627]
[1763789829497,0.405504,2740.3,2740.0,3.64953319]
[1763789829823,0.875304,2740.3,2739.5,0.1]
[1763789830017,0.875304,2740.3,2739.6,0.123]
[1763789830167,0.405504,2740.1,2739.9,0.497]
[1763789830371,0.950804,2740.0,2739.9,0.497]
[1763789830581,0.405504,2739.9,2739.5,0.90699264]
[1763789830782,1.057004,2739.9,2739.6,0.123]
[1763789831019,0.484904,2739.7,2739.6,0.123]
[1763789831316,0.405504,2740.0,2739.6,4.60619308]
[1763789831511,0.495,2739.7,2739.6,4.68009958]
[1763789831911,0.495,2739.7,2739.6,7.44727554]
[1763789832080,0.495,2739.7,2739.6,6.5402829]
[1763789832410,0.955004,2739.7,2738.8,3.65114181]
[1763789832619,0.875304,2739.7,2738.9,0.63679418]
[1763789832803,0.875304,2739.7,2739.2,0.1]
[1763789833108,0.875304,2739.7,2739.3,0.123]
[1763789833301,0.875304,2739.7,2739.3,1.02999264]
[1763789833631,0.875304,2739.6,2739.5,0.001]
[1763789833779,0.954704,2739.6,2739.5,0.001]
[1763789835213,0.954704,2739.6,2738.5,0.001]
[1763789835410,1.071004,2738.6,2738.5,0.001]
[1763789835712,1.071004,2738.6,2738.5,0.124]
[1763789835713,1.125504,2738.6,2738.5,0.124]
[1763789835909,1.125504,2738.6,2738.5,0.001]
[1763789837542,0.405504,2738.3,2738.0,0.001]
[1763789837743,0.896104,2738.1,2738.0,0.001]
[1763789838231,0.954904,2738.1,2738.0,0.001]
[1763789839650,0.896104,2738.1,2738.0,0.001]
[1763789839880,0.954904,2738.1,2738.0,0.001]
[1763789841143,0.896104,2738.1,2738.0,0.001]
[1763789841713,0.405504,2738.1,2738.0,0.001]
[1763789841910,0.6403,2738.6,2738.0,0.90799264]
[1763789842531,0.405504,2738.5,2738.0,1.74168963]
[1763789843142,0.4698,2738.5,2738.1,2.76717596]
[1763789843548,0.405504,2738.4,2738.1,2.76717596]
[1763789843773,0.405504,2738.5,2738.2,0.90699264]
[1763789843959,0.1705,2738.6,2738.3,0.73263294]
[1763789844148,0.1705,2738.6,2738.4,0.123]
[1763789844470,0.405504,2738.5,2738.4,0.123]
[1763789844881,0.484904,2738.5,2738.4,0.123]
[1763789845035,0.950804,2738.5,2738.2,1.02999264]
[1763789845233,0.488804,2738.3,2738.2,0.123]
[1763789845672,0.950904,2738.3,2738.2,0.123]
[1763789846645,0.950904,2738.3,2738.2,0.113946]
[1763789846977,0.950904,2738.3,2738.0,0.001]
[1763789846978,0.405504,2738.2,2738.0,0.001]
[1763789847283,0.484904,2738.1,2738.0,0.001]
[1763789847693,0.950804,2738.1,2738.0,0.001]
[1763789851463,0.0794,2738.1,2738.0,0.001]
[1763789852298,0.950804,2738.1,2738.0,0.001]
[1763789859310,0.950804,2738.1,2737.4,2.76817596]
[1763789859311,0.405504,2737.8,2736.7,2.76817596]
[1763789859505,0.501104,2737.3,2736.7,0.001]
[1763789860140,0.950904,2737.3,2736.7,0.001]
[1763789860708,0.405504,2737.2,2736.7,0.001]
[1763789860909,0.0045,2737.1,2736.7,0.001]
[1763789861419,0.863404,2737.1,2736.7,0.001]
[1763789864274,0.405504,2737.1,2736.7,0.001]
[1763789864442,0.950904,2737.1,2736.7,0.001]
[1763789866287,1.52411633,2737.1,2736.7,0.001]
[1763789866670,1.52411633,2737.1,2736.5,0.001]
[1763789866671,0.1862,2736.9,2736.5,0.001]
[1763789866836,0.886904,2736.6,2736.5,0.001]
[1763789867035,1.55962521,2736.6,2736.5,0.001]
[1763789867235,1.62752521,2736.6,2736.5,0.001]
[1763789867879,0.954804,2736.6,2736.5,0.001]
[1763789869641,0.886904,2736.6,2736.5,0.001]
[1763789869841,0.954804,2736.6,2736.5,0.001]
[1763789871997,0.4814,2736.6,2736.5,0.001]
[1763789872197,0.954804,2736.6,2736.5,0.001]